[Event "WYCC 2018 O18"]
[Site "Halkidiki"]
[Date "2018.10.26"]
[Round "7"]
[White "Goncalves, Davi Sulzbacher"]
[Black "Szustakowski, Antoni"]
[Result "1/2-1/2"]
[ECO "E06"]
[WhiteElo "2177"]
[BlackElo "2319"]
[Annotator "NA"]
[PlyCount "106"]
[EventDate "2018.10.20"]
[EventType "swiss"]
[EventCountry "GRE"]
[SourceTitle "playchess.com"]
[Source "ChessBase"]
[SourceQuality "1"]
[TimeControl "40/5400+30:1800+30"]

1. d4 {[%emt 0:00:00]} Nf6 {[%emt 0:00:00]} 2. c4 {[%emt 0:00:00]} e6 {[%emt 0:00:00]} 3. Nf3 {[%emt 0:00:00]} d5 {[%emt 0:00:00]} 4. g3 {[%emt 0:00:07]} Be7 {[%emt 0:00:36]} 5. Bg2 {[%emt 0:00:35]} O-O {[%emt 0:00:31]} 6. O-O {[%emt 0:00:15]} dxc4 {[%emt 0:00:24]} 7. Qc2 {[%emt 0:00:33]} b6 {[%emt 0:00:18]} 8. Nfd2 {[%emt 0:00:36]} c6 {[%emt 0:00:50]} 9. Nxc4 {[%emt 0:00:50]} Bb7 {[%emt 0:03:03]} 10. Rd1 {[%emt 0:06:44]} Qc8 {[%emt 0:02:10]} 11. Bf4 {[%emt 0:03:11]} (11. e4 $16) 11... Rd8 $14 {[%emt 0:01:41]} 12. Nc3 {[%emt 0:03:19]} Na6 {[%emt 0:09:49]} 13. Ne4 {[%emt 0:16:05]} Nxe4 {[%emt 0:05:43]} 14. Qxe4 {[%emt 0:12:01]} Nb4 {[%emt 0:05:21]} 15. Ne5 {[%emt 0:25:24]} Rb8 {[%emt 0:25:07]} 16. Nxf7 {[%emt 0:13:30]} c5 {[%emt 0:02:10]} 17. d5 {[%emt 0:01:51]} Rxd5 {[%emt 0:00:13]} 18. Rxd5 {[%emt 0:00:40]} Bxd5 {[%emt 0:00:16]} 19. Qe5 {[%emt 0:00:08]} Nc6 {[%emt 0:00:54]} 20. Qh5 {[%emt 0:01:03]} g6 {[%emt 0:09:28]} 21. Nh6+ {[%emt 0:00:45]} Kg7 {[%emt 0:00:24]} 22. Qh3 {[%emt 0:00:28]} e5 {[%emt 0:02:04]} 23. Nf5+ {[%emt 0:02:49]} Qxf5 {[%emt 0:01:13]} 24. Bh6+ {[%emt 0:00:28]} Kf6 {[%emt 0:01:07]} 25. Qxf5+ {[%emt 0:03:13]} gxf5 {[%emt 0:00:27]} 26. Bxd5 {[%emt 0:00:09]} Nd4 {[%emt 0:01:25]} 27. Kf1 {[%emt 0:01:34]} Rd8 {[%emt 0:00:08]} 28. e4 {[%emt 0:04:30]} Nc2 {[%emt 0:13:17]} 29. Rd1 {[%emt 0:00:11]} Nb4 {[%emt 0:04:10]} 30. a3 {[%emt 0:01:10]} Nxd5 {[%emt 0:00:33]} 31. exd5 {[%emt 0:00:03]} Kg6 {[%emt 0:02:55]} 32. Be3 {[%emt 0:00:25]} e4 {[%emt 0:04:11]} 33. b3 {[%emt 0:00:46]} Bf6 {[%emt 0:01:52]} 34. Ke2 {[%emt 0:00:22]} Bc3 {[%emt 0:00:17]} 35. a4 {[%emt 0:00:36]} Rd7 {[%emt 0:01:00]} 36. f3 {[%emt 0:00:23]} h5 {[%emt 0:01:52]} 37. h3 {[%emt 0:01:07]} Be5 {[%emt 0:01:10]} 38. Bf4 {[%emt 0:01:56]} Bd4 {[%emt 0:00:59]} 39. d6 {[%emt 0:00:16]} Kf6 {[%emt 0:00:39]} 40. b4 {[%emt 0:00:00]} Ke6 {[%emt 0:00:00]} 41. g4 {[%emt 0:08:57]} exf3+ {[%emt 0:12:45]} 42. Kxf3 {[%emt 0:00:12]} hxg4+ {[%emt 0:00:26]} 43. hxg4 {[%emt 0:00:09]} fxg4+ {[%emt 0:00:05]} 44. Kxg4 {[%emt 0:00:09]} Rg7+ {[%emt 0:04:58]} 45. Kf3 {[%emt 0:00:13]} Rg1 {[%emt 0:00:48]} 46. Rxg1 {[%emt 0:04:29]} Bxg1 {[%emt 0:00:02]} 47. b5 {[%emt 0:00:19]} c4 {[%emt 0:01:06]} 48. Ke4 {[%emt 0:00:14]} Bc5 {[%emt 0:01:17]} 49. d7 {[%emt 0:00:19]} Kxd7 {[%emt 0:00:10]} 50. Kd5 {[%emt 0:00:13]} c3 {[%emt 0:00:17]} 51. Kc4 {[%emt 0:00:07]} c2 {[%emt 0:00:09]} 52. Kb3 {[%emt 0:00:09]} Bd6 {[%emt 0:00:13]} 53. Bd2 {[%emt 0:00:18]} Ke6 {[%emt 0:00:11]} 1/2-1/2

[Event "WYCC 2018 O18"]
[Site "Halkidiki"]
[Date "2018.10.26"]
[Round "7"]
[White "Veleshnja, Zino"]
[Black "Kouskoutis, Georgios-Alexandros"]
[Result "0-1"]
[ECO "E06"]
[WhiteElo "2155"]
[BlackElo "2296"]
[Annotator "NA"]
[PlyCount "98"]
[EventDate "2018.10.20"]
[EventType "swiss"]
[EventCountry "GRE"]
[SourceTitle "playchess.com"]
[Source "ChessBase"]
[SourceQuality "1"]
[TimeControl "40/5400+30:1800+30"]

1. d4 {[%emt 0:00:00]} Nf6 {[%emt 0:00:00]} 2. c4 {[%emt 0:00:00]} e6 {[%emt 0:00:00]} 3. g3 {[%emt 0:00:00]} d5 {[%emt 0:00:00]} 4. Nf3 {[%emt 0:00:00]} Be7 {[%emt 0:00:03]} 5. Bg2 {[%emt 0:00:00]} O-O {[%emt 0:00:09]} 6. O-O {[%emt 0:00:00]} c6 {[%emt 0:00:05]} 7. Qc2 {[%emt 0:00:00]} b6 {[%emt 0:00:05]} 8. Bf4 {[%emt 0:00:00]} Bb7 {[%emt 0:04:24]} 9. Rd1 {[%emt 0:00:22]} Nbd7 {[%emt 0:01:00]} 10. Nc3 {[%emt 0:00:03]} Rc8 {[%emt 0:07:51]} 11. Ne5 {[%emt 0:07:30]} b5 {[%emt 0:23:31]} 12. cxb5 {[%emt 0:04:35]} cxb5 {[%emt 0:00:39]} 13. a3 {[%emt 0:18:59]} Nb6 {[%emt 0:11:36]} 14. Rdc1 {[%emt 0:03:54]} Nfd7 {[%emt 0:02:59]} 15. Nd3 {[%emt 0:02:29]} Nc4 {[%emt 0:11:15]} 16. b4 {[%emt 0:11:35]} Bf6 {[%emt 0:03:08]} 17. Nc5 {[%emt 0:11:59]} Nxc5 {[%emt 0:04:42]} 18. dxc5 {[%emt 0:00:17]} Bxc3 {[%emt 0:01:26]} 19. Qxc3 {[%emt 0:00:39]} d4 {[%emt 0:00:09]} 20. Qc2 {[%emt 0:08:00]} Bxg2 {[%emt 0:00:21]} 21. Kxg2 {[%emt 0:00:04]} Qd5+ {[%emt 0:01:27]} 22. Kg1 {[%emt 0:00:36]} e5 {[%emt 0:01:01]} 23. Bd2 {[%emt 0:01:44]} e4 {[%emt 0:04:09]} 24. a4 {[%emt 0:08:14]} a6 {[%emt 0:01:27]} 25. axb5 {[%emt 0:00:34]} axb5 {[%emt 0:00:09]} 26. Rd1 {[%emt 0:02:22]} d3 {[%emt 0:02:47]} 27. Bc3 {[%emt 0:03:32]} Rfd8 {[%emt 0:01:00]} 28. Qb1 {[%emt 0:01:10]} Rc6 {[%emt 0:03:15]} 29. e3 {[%emt 0:06:32]} h5 {[%emt 0:06:12]} 30. Rf1 {[%emt 0:03:32]} h4 {[%emt 0:01:56]} 31. Qd1 {[%emt 0:00:17]} Rg6 {[%emt 0:01:55]} 32. Bd4 {[%emt 0:00:35]} Qf5 {[%emt 0:01:25]} 33. Kg2 {[%emt 0:01:33]} Qg5 {[%emt 0:01:03]} 34. f4 {[%emt 0:00:42]} Qf5 {[%emt 0:00:41]} 35. Qe1 {[%emt 0:02:52]} Rh6 {[%emt 0:00:41]} 36. gxh4 {[%emt 0:00:59]} Rg6+ {[%emt 0:03:29]} 37. Kh1 {[%emt 0:00:10]} Qg4 {[%emt 0:00:21]} 38. Qf2 {[%emt 0:01:02]} Rxd4 {[%emt 0:01:09]} 39. Rg1 {[%emt 0:00:17]} Qh5 {[%emt 0:00:49]} 40. Rxg6 {[%emt 0:00:00]} fxg6 {[%emt 0:00:00]} 41. exd4 {[%emt 0:08:08]} e3 {[%emt 0:01:25]} 42. Qg3 {[%emt 0:12:40]} d2 {[%emt 0:01:10]} 43. f5 {[%emt 0:01:19]} d1=Q+ {[%emt 0:04:32]} 44. Rxd1 {[%emt 0:00:10]} Qxd1+ {[%emt 0:00:11]} 45. Kg2 {[%emt 0:00:07]} Qc2+ {[%emt 0:01:31]} 46. Kg1 {[%emt 0:00:59]} Qxf5 {[%emt 0:01:33]} 47. c6 {[%emt 0:01:00]} Nd2 48. h3 {[%emt 0:00:07]} Qf1+ {[%emt 0:02:12]} 49. Kh2 {[%emt 0:00:30]} Nf3+ {[%emt 0:00:08]} 0-1

[Event "WYCC 2018 O18"]
[Site "Halkidiki"]
[Date "2018.10.26"]
[Round "7"]
[White "Giesinger, Elias"]
[Black "Bronstein, Or"]
[Result "1/2-1/2"]
[ECO "A49"]
[WhiteElo "2131"]
[BlackElo "2385"]
[Annotator "NA"]
[PlyCount "65"]
[EventDate "2018.10.20"]
[EventType "swiss"]
[EventCountry "GRE"]
[SourceTitle "playchess.com"]
[Source "ChessBase"]
[SourceQuality "1"]
[TimeControl "40/5400+30:1800+30"]

1. d4 {[%emt 0:00:13]} Nf6 {[%emt 0:00:00]} 2. Nf3 {[%emt 0:00:25]} g6 {[%emt 0:00:00]} 3. g3 {[%emt 0:00:25]} Bg7 {[%emt 0:00:00]} 4. Bg2 {[%emt 0:00:03]} O-O {[%emt 0:00:02]} 5. O-O {[%emt 0:00:07]} c5 {[%emt 0:01:57]} 6. dxc5 {[%emt 0:00:51]} Na6 {[%emt 0:06:57]} 7. Be3 {[%emt 0:01:16]} Ne4 {[%emt 0:02:29]} 8. Bd4 {[%emt 0:01:36]} Nexc5 {[%emt 0:00:58]} 9. Bxg7 {[%emt 0:01:21]} Kxg7 {[%emt 0:00:03]} 10. c4 {[%emt 0:04:14]} d6 {[%emt 0:15:20]} 11. Nc3 {[%emt 0:00:59]} Bd7 {[%emt 0:05:38]} 12. a3 {[%emt 0:09:41]} Rb8 {[%emt 0:01:46]} 13. b4 {[%emt 0:03:35]} Ne6 {[%emt 0:00:02]} 14. Rc1 {[%emt 0:03:50]} Kg8 {[%emt 0:01:43]} 15. Qd2 {[%emt 0:13:04]} Nac7 {[%emt 0:02:36]} 16. Rfd1 {[%emt 0:02:49]} a5 {[%emt 0:07:51]} 17. c5 {[%emt 0:08:44]} axb4 {[%emt 0:00:15]} 18. axb4 {[%emt 0:03:46]} Nb5 {[%emt 0:01:01]} 19. cxd6 {[%emt 0:11:28]} exd6 {[%emt 0:01:39]} 20. Nxb5 {[%emt 0:05:49]} Bxb5 {[%emt 0:00:02]} 21. e3 {[%emt 0:01:38]} Ba4 {[%emt 0:00:28]} 22. Re1 {[%emt 0:01:40]} Qb6 {[%emt 0:03:19]} 23. Nd4 {[%emt 0:06:20]} Rfe8 {[%emt 0:10:19]} 24. Nxe6 {[%emt 0:01:19]} Rxe6 {[%emt 0:04:16]} 25. Bd5 {[%emt 0:01:21]} Re7 {[%emt 0:00:17]} 26. Rc4 {[%emt 0:04:40]} Bb3 {[%emt 0:05:21]} 27. Rd4 {[%emt 0:00:18]} Bxd5 {[%emt 0:00:09]} 28. Rxd5 {[%emt 0:00:06]} Re4 {[%emt 0:00:29]} 29. Rb1 {[%emt 0:03:34]} Rd8 {[%emt 0:00:11]} 30. b5 {[%emt 0:00:27]} Re5 {[%emt 0:04:27]} 31. Rd1 {[%emt 0:02:37]} Rxd5 {[%emt 0:00:07]} 32. Qxd5 {[%emt 0:00:04]} Rc8 {[%emt 0:01:10]} 33. Rb1 {[%emt 0:03:33]} 1/2-1/2

[Event "WYCC 2018 O18"]
[Site "Halkidiki"]
[Date "2018.10.26"]
[Round "7"]
[White "Samaridis, Konstantinos"]
[Black "Liska, Jiri"]
[Result "0-1"]
[ECO "B05"]
[WhiteElo "2052"]
[BlackElo "2245"]
[Annotator "NA"]
[PlyCount "86"]
[EventDate "2018.10.20"]
[EventType "swiss"]
[EventCountry "GRE"]
[SourceTitle "playchess.com"]
[Source "ChessBase"]
[SourceQuality "1"]
[TimeControl "40/5400+30:1800+30"]

1. e4 {[%emt 0:00:00]} Nf6 {[%emt 0:00:22]} 2. e5 {[%emt 0:00:00]} Nd5 {[%emt 0:00:08]} 3. d4 {[%emt 0:00:00]} d6 {[%emt 0:00:12]} 4. Nf3 {[%emt 0:00:00]} Bg4 {[%emt 0:05:16]} 5. Be2 {[%emt 0:00:13]} e6 {[%emt 0:00:47]} 6. c4 {[%emt 0:02:09]} Nb6 {[%emt 0:00:43]} 7. exd6 {[%emt 0:00:24]} cxd6 {[%emt 0:00:18]} 8. h3 {[%emt 0:01:07]} Bh5 {[%emt 0:01:02]} 9. Nc3 {[%emt 0:00:21]} Be7 {[%emt 0:01:51]} 10. g4 {[%emt 0:03:04]} Bg6 {[%emt 0:00:15]} 11. h4 {[%emt 0:00:06]} h5 $11 {[%emt 0:10:00]} 12. g5 {[%emt 0:00:07]} N8d7 {[%emt 0:14:12]} 13. d5 {[%emt 0:07:11]} e5 {[%emt 0:08:48]} 14. Be3 {[%emt 0:01:25]} Rc8 {[%emt 0:03:24]} 15. b3 {[%emt 0:05:39]} Nc5 {[%emt 0:06:49]} 16. Bxc5 {[%emt 0:01:35]} Rxc5 {[%emt 0:00:59]} 17. Nd2 {[%emt 0:04:22]} Rc8 {[%emt 0:03:48]} 18. Nde4 {[%emt 0:01:56]} Nd7 {[%emt 0:04:59]} 19. O-O {[%emt 0:13:02]} f5 {[%emt 0:11:07]} 20. gxf6 {[%emt 0:02:39]} gxf6 {[%emt 0:02:47]} 21. Kh2 {[%emt 0:10:47]} f5 {[%emt 0:04:32]} 22. Rg1 {[%emt 0:00:18]} Kf7 {[%emt 0:00:15]} 23. Ng5+ {[%emt 0:01:49]} Bxg5 {[%emt 0:00:08]} 24. Rxg5 {[%emt 0:00:16]} Qf6 {[%emt 0:01:48]} 25. b4 {[%emt 0:08:46]} e4 {[%emt 0:04:22]} 26. Qa4 {[%emt 0:10:10]} Qe5+ {[%emt 0:03:49]} 27. Kg2 {[%emt 0:06:52]} Rcd8 {[%emt 0:01:00]} 28. Qb3 {[%emt 0:05:24]} Nf6 {[%emt 0:02:09]} 29. Rh1 {[%emt 0:02:25]} Nh7 {[%emt 0:01:09]} 30. Rg3 {[%emt 0:04:36]} f4 {[%emt 0:00:17]} 31. Rgh3 {[%emt 0:00:22]} f3+ {[%emt 0:00:38]} 32. Bxf3 {[%emt 0:00:03]} exf3+ {[%emt 0:00:11]} 33. Rxf3+ {[%emt 0:00:05]} Nf6 {[%emt 0:00:48]} 34. c5 {[%emt 0:01:24]} Rhg8 {[%emt 0:00:40]} 35. Kf1 {[%emt 0:00:51]} Rde8 {[%emt 0:01:03]} 36. Re3 {[%emt 0:00:27]} Qd4 {[%emt 0:01:14]} 37. Re6 {[%emt 0:03:17]} Bd3+ {[%emt 0:00:35]} 38. Ke1 {[%emt 0:00:24]} Nxd5 {[%emt 0:00:45]} 39. Re3 {[%emt 0:02:47]} Rxe3+ {[%emt 0:01:05]} 40. fxe3 {[%emt 0:00:00]} Qxe3+ {[%emt 0:00:00]} 41. Kd1 {[%emt 0:00:05]} Qf3+ {[%emt 0:00:39]} 42. Kd2 {[%emt 0:00:15]} Rg2+ {[%emt 0:00:14]} 43. Ke1 {[%emt 0:00:11]} Qf2+ {[%emt 0:00:13]} 0-1

[Event "WYCC 2018 O18"]
[Site "Halkidiki"]
[Date "2018.10.27"]
[Round "8"]
[White "Gholami, Aryan"]
[Black "Giesinger, Elias"]
[Result "1-0"]
[ECO "A46"]
[WhiteElo "2493"]
[BlackElo "2131"]
[Annotator "ChessBase"]
[PlyCount "81"]
[EventDate "2018.10.20"]
[EventType "swiss"]
[EventCountry "GRE"]
[SourceTitle "playchess.com"]
[Source "ChessBase"]
[SourceQuality "1"]
[TimeControl "40/5400+30:1800+30"]

1. d4 {[%emt 0:00:00]} Nf6 {[%emt 0:00:00]} 2. Nf3 {[%emt 0:00:14]} e6 {[%emt 0:00:00]} 3. Bf4 {[%emt 0:00:06]} c5 {[%emt 0:00:00]} 4. e3 {[%emt 0:00:05]} cxd4 {[%emt 0:00:06]} 5. exd4 {[%emt 0:00:08]} Be7 {[%emt 0:00:50]} 6. Nbd2 {[%emt 0:00:52]} O-O {[%emt 0:01:38]} 7. h3 {[%emt 0:00:21]} b6 {[%emt 0:00:39]} 8. Bd3 {[%emt 0:00:07]} Bb7 {[%emt 0:01:15]} 9. c3 {[%emt 0:00:19]} d6 {[%emt 0:00:06]} 10. O-O {[%emt 0:00:13]} Nbd7 11. Bh2 {[%emt 0:00:17]} Re8 {[%emt 0:03:01]} 12. Re1 {[%emt 0:01:36]} Bf8 {[%emt 0:02:51]} 13. a4 {[%emt 0:04:01]} a6 {[%emt 0:06:08]} 14. Qe2 {[%emt 0:08:07]} Qc7 {[%emt 0:03:36]} 15. Qf1 {[%emt 0:03:03]} g6 16. Ng5 Qc6 {[%emt 0:04:38]} 17. Nc4 {[%emt 0:04:47]} h6 {[%emt 0:10:27]} 18. Ne4 {[%emt 0:01:15]} Nxe4 {[%emt 0:02:39]} 19. Bxe4 {[%emt 0:00:06]} d5 {[%emt 0:02:42]} 20. Bf3 {[%emt 0:00:08]} Red8 {[%emt 0:11:58]} 21. Ne3 {[%emt 0:11:34]} Nf6 {[%emt 0:01:17]} 22. Be2 {[%emt 0:07:52]} Qc8 {[%emt 0:10:23]} 23. Bd3 Bc6 24. Qe2 {[%emt 0:03:33]} Qb7 {[%emt 0:00:51]} 25. Qf3 {[%emt 0:02:06]} Bg7 {[%emt 0:02:24]} 26. Be5 {[%emt 0:01:05]} Qe7 {[%emt 0:01:46]} 27. Qe2 {[%emt 0:02:46]} Qb7 {[%emt 0:01:50]} 28. Ng4 {[%emt 0:00:44]} Nxg4 {[%emt 0:01:43]} 29. hxg4 {[%emt 0:00:49]} b5 {[%emt 0:04:02]} 30. Bxg7 {[%emt 0:01:27]} Kxg7 {[%emt 0:03:55]} 31. Qe5+ {[%emt 0:00:06]} Kg8 {[%emt 0:03:20]} 32. Re3 {[%emt 0:00:38]} Qe7 {[%emt 0:03:12]} 33. Rh3 {[%emt 0:00:32]} Qg5 {[%emt 0:00:27]} 34. Qh2 {[%emt 0:00:27]} Kg7 {[%emt 0:01:24]} 35. f4 {[%emt 0:00:06]} Qe7 {[%emt 0:02:22]} 36. axb5 {[%emt 0:00:09]} Bxb5 {[%emt 0:00:33]} 37. Bxb5 {[%emt 0:00:06]} axb5 {[%emt 0:00:04]} 38. Rxa8 {[%emt 0:00:05]} Rxa8 {[%emt 0:00:06]} 39. Rxh6 {[%emt 0:00:07]} Ra1+ {[%emt 0:04:49]} 40. Kf2 {[%emt 0:00:00]} Qf6 {[%emt 0:00:00]} 41. Rh8 {[%emt 0:01:31]} 1-0

[Event "WYCC 2018 O18"]
[Site "Halkidiki"]
[Date "2018.10.27"]
[Round "8"]
[White "Bronstein, Or"]
[Black "Torres Cueto, Jesus Marcial"]
[Result "1/2-1/2"]
[ECO "A22"]
[WhiteElo "2385"]
[BlackElo "2078"]
[Annotator "NA"]
[PlyCount "93"]
[EventDate "2018.10.20"]
[EventType "swiss"]
[EventCountry "GRE"]
[SourceTitle "playchess.com"]
[Source "ChessBase"]
[SourceQuality "1"]
[TimeControl "40/5400+30:1800+30"]

1. c4 {[%emt 0:00:00]} e5 {[%emt 0:02:30]} 2. Nc3 {[%emt 0:00:00]} Nf6 {[%emt 0:00:22]} 3. Nf3 {[%emt 0:00:00]} d6 {[%emt 0:00:07]} 4. g3 g6 {[%emt 0:00:51]} 5. Bg2 {[%emt 0:04:37]} Bg7 {[%emt 0:00:01]} 6. O-O {[%emt 0:02:18]} O-O {[%emt 0:00:21]} 7. d3 {[%emt 0:00:22]} h6 {[%emt 0:01:39]} 8. Rb1 {[%emt 0:00:22]} Nc6 {[%emt 0:02:09]} 9. b4 {[%emt 0:00:26]} Be6 {[%emt 0:04:25]} 10. b5 {[%emt 0:00:48]} Ne7 {[%emt 0:00:06]} 11. Bb2 {[%emt 0:01:15] LiveBook: 8 Games} Qc8 {[%emt 0:02:55]} 12. Re1 {[%emt 0:01:27]} Nh5 {[%emt 0:02:25]} 13. a4 {[%emt 0:09:05]} f5 {[%emt 0:01:06]} 14. e3 {[%emt 0:02:33]} Bf6 $16 {[%emt 0:02:18]} 15. Nd2 {[%emt 0:09:46]} Ng7 {[%emt 0:03:04]} 16. Qc2 {[%emt 0:06:25]} c6 {[%emt 0:02:43]} 17. bxc6 {[%emt 0:02:40]} bxc6 {[%emt 0:01:15]} 18. Ba3 {[%emt 0:00:32]} Qc7 {[%emt 0:01:20]} 19. a5 {[%emt 0:09:33]} Rab8 {[%emt 0:04:39]} 20. Qa4 {[%emt 0:00:28]} e4 {[%emt 0:02:12]} 21. d4 {[%emt 0:00:29]} Bd7 {[%emt 0:01:07]} 22. c5 {[%emt 0:06:02]} d5 {[%emt 0:02:36]} 23. a6 {[%emt 0:00:05]} g5 {[%emt 0:00:09]} 24. Rxb8 {[%emt 0:06:47]} Rxb8 {[%emt 0:00:14]} 25. Rb1 {[%emt 0:00:07]} f4 {[%emt 0:00:45]} 26. Rxb8+ {[%emt 0:00:31]} Qxb8 {[%emt 0:00:04]} 27. Qb3 {[%emt 0:00:09]} Qxb3 {[%emt 0:00:20]} 28. Nxb3 {[%emt 0:00:02]} fxe3 {[%emt 0:01:07]} 29. fxe3 {[%emt 0:00:01]} g4 {[%emt 0:01:16]} 30. Bb4 {[%emt 0:06:14]} Nef5 {[%emt 0:00:59]} 31. Kf2 {[%emt 0:00:09]} Bg5 {[%emt 0:00:12]} 32. Nd1 {[%emt 0:00:08]} Bd8 {[%emt 0:02:45]} 33. Ba5 {[%emt 0:09:32]} Bxa5 {[%emt 0:00:19]} 34. Nxa5 {[%emt 0:00:02]} Kf7 {[%emt 0:01:16]} 35. Nc3 {[%emt 0:00:12]} Ne6 {[%emt 0:00:52]} 36. Na2 {[%emt 0:05:17]} Ne7 {[%emt 0:02:31]} 37. Nb4 {[%emt 0:00:52]} Ng5 {[%emt 0:00:48]} 38. Bf1 {[%emt 0:01:40]} Ke8 {[%emt 0:02:03]} 39. Nb7 {[%emt 0:00:55]} Nf3 {[%emt 0:01:07]} 40. Nd6+ {[%emt 0:00:00]} Kd8 {[%emt 0:00:00]} 41. Nf7+ {[%emt 0:10:11]} Ke8 {[%emt 0:03:46]} 42. Nd6+ {[%emt 0:00:25]} Kd8 {[%emt 0:00:01]} 43. Be2 {[%emt 0:00:26]} Nxh2 {[%emt 0:02:13]} 44. Nf7+ {[%emt 0:03:08]} Ke8 {[%emt 0:00:06]} 45. Nd6+ {[%emt 0:00:51]} Kd8 {[%emt 0:00:28]} 46. Nf7+ {[%emt 0:09:55]} Ke8 {[%emt 0:00:07]} 47. Nd6+ {[%emt 0:00:36]} 1/2-1/2

[Event "WYCC 2018 O18"]
[Site "Halkidiki"]
[Date "2018.10.27"]
[Round "8"]
[White "Muha, Miljenko"]
[Black "Rengifo Blancas, Renzo Jhonathan"]
[Result "1-0"]
[ECO "D31"]
[WhiteElo "2365"]
[BlackElo "2123"]
[Annotator "NA"]
[PlyCount "155"]
[EventDate "2018.10.20"]
[EventType "swiss"]
[EventCountry "GRE"]
[SourceTitle "playchess.com"]
[Source "ChessBase"]
[SourceQuality "1"]
[TimeControl "40/5400+30:1800+30"]

1. d4 {[%emt 0:00:00]} d5 {[%emt 0:00:00]} 2. c4 {[%emt 0:00:00]} e6 {[%emt 0:00:00]} 3. Nc3 {[%emt 0:00:00]} c6 {[%emt 0:00:00]} 4. Nf3 {[%emt 0:04:40]} dxc4 {[%emt 0:00:39]} 5. e3 b5 {[%emt 0:00:07]} 6. a4 {[%emt 0:03:11]} Bb4 {[%emt 0:00:13]} 7. Bd2 {[%emt 0:00:23]} a5 {[%emt 0:00:19]} 8. axb5 {[%emt 0:00:21]} Bxc3 {[%emt 0:00:06]} 9. Bxc3 {[%emt 0:00:18]} cxb5 {[%emt 0:00:04]} 10. b3 {[%emt 0:00:07]} Bb7 {[%emt 0:00:18]} 11. bxc4 {[%emt 0:00:09]} b4 {[%emt 0:00:12]} 12. Bb2 {[%emt 0:00:12]} Nf6 {[%emt 0:00:29]} 13. c5 {[%emt 0:03:31]} O-O {[%emt 0:02:10]} 14. Bb5 {[%emt 0:01:50]} Qc7 {[%emt 0:15:53]} 15. h3 $11 {[%emt 0:09:41]} Bc6 {[%emt 0:01:45]} 16. Ba4 {[%emt 0:03:05]} Nbd7 {[%emt 0:10:39]} 17. O-O {[%emt 0:02:16]} Rfb8 {[%emt 0:01:58]} 18. Bxc6 {[%emt 0:16:49]} Qxc6 {[%emt 0:00:06]} 19. Qa4 {[%emt 0:08:48]} Qd5 {[%emt 0:00:54]} 20. Rfd1 {[%emt 0:09:30]} b3 {[%emt 0:19:07]} 21. Nd2 {[%emt 0:03:52]} Rb4 {[%emt 0:02:13]} 22. Qa3 {[%emt 0:00:03]} Rb5 {[%emt 0:11:03]} 23. Rdc1 {[%emt 0:01:12]} Nb8 {[%emt 0:03:48]} 24. Nc4 {[%emt 0:04:55]} Nbd7 {[%emt 0:23:25]} 25. c6 {[%emt 0:10:03]} Qxc6 {[%emt 0:03:29]} 26. Nd6 {[%emt 0:00:32]} Qb6 {[%emt 0:00:16]} 27. Nxb5 {[%emt 0:02:53]} Qxb5 {[%emt 0:00:02]} 28. Rc3 {[%emt 0:02:45]} Ne4 {[%emt 0:01:15]} 29. Rxb3 {[%emt 0:00:28]} Qe2 {[%emt 0:00:13]} 30. f3 {[%emt 0:03:32]} Qf2+ {[%emt 0:00:34]} 31. Kh1 {[%emt 0:00:13]} Ng3+ {[%emt 0:02:44]} 32. Kh2 {[%emt 0:00:02]} Nf5 {[%emt 0:00:08]} 33. e4 {[%emt 0:03:34]} Nxd4 {[%emt 0:00:07]} 34. Bxd4 {[%emt 0:00:42]} Qxd4 {[%emt 0:00:03]} 35. Rd3 {[%emt 0:00:59]} Qe5+ {[%emt 0:00:02]} 36. Kh1 {[%emt 0:00:09]} Nf6 {[%emt 0:00:10]} 37. Qc3 {[%emt 0:00:59]} Qb5 {[%emt 0:01:12]} 38. Rxa5 {[%emt 0:02:30]} Qb1+ {[%emt 0:01:36]} 39. Kh2 {[%emt 0:00:16]} Rf8 {[%emt 0:01:09]} 40. Qd2 {[%emt 0:00:00]} Qb8+ {[%emt 0:00:00]} 41. Kh1 {[%emt 0:05:02]} h6 {[%emt 0:00:59]} 42. Ra1 {[%emt 0:01:32]} Qe5 {[%emt 0:06:17]} 43. Rd1 {[%emt 0:00:45]} Nh5 {[%emt 0:00:28]} 44. Qf2 {[%emt 0:03:17]} Qg5 {[%emt 0:01:34]} 45. Rc3 {[%emt 0:02:15]} Qf4 {[%emt 0:08:12]} 46. g4 {[%emt 0:06:08]} Nf6 {[%emt 0:01:04]} 47. Kg2 {[%emt 0:00:45]} Ra8 {[%emt 0:00:35]} 48. Qc2 {[%emt 0:03:08]} h5 {[%emt 0:02:19]} 49. Rc8+ {[%emt 0:03:16]} Rxc8 {[%emt 0:00:07]} 50. Qxc8+ {[%emt 0:00:05]} Kh7 {[%emt 0:00:02]} 51. Qc2 {[%emt 0:00:41]} Qe5 {[%emt 0:02:42]} 52. Qf2 {[%emt 0:01:56]} g5 {[%emt 0:02:00]} 53. Qd4 {[%emt 0:01:16]} Qf4 {[%emt 0:00:25]} 54. Qd6 {[%emt 0:03:11]} e5 {[%emt 0:09:20]} 55. Qd2 {[%emt 0:00:18]} Qxd2+ {[%emt 0:01:54]} 56. Rxd2 {[%emt 0:00:06]} h4 {[%emt 0:00:48]} 57. Rd5 {[%emt 0:03:18]} Nxd5 {[%emt 0:00:36]} 58. exd5 {[%emt 0:00:02]} Kg7 {[%emt 0:00:08]} 59. Kf2 {[%emt 0:00:18]} Kf6 {[%emt 0:00:18]} 60. Ke3 {[%emt 0:00:04]} Ke7 {[%emt 0:00:05]} 61. Ke4 {[%emt 0:00:14]} Kd6 {[%emt 0:01:28]} 62. Kf5 {[%emt 0:00:10]} Kxd5 {[%emt 0:00:16]} 63. Kxg5 {[%emt 0:00:07]} e4 {[%emt 0:00:49]} 64. fxe4+ {[%emt 0:00:06]} Kxe4 {[%emt 0:00:04]} 65. Kf6 {[%emt 0:01:25]} Kf4 {[%emt 0:00:10]} 66. Kxf7 {[%emt 0:00:15]} Kg3 {[%emt 0:00:05]} 67. g5 {[%emt 0:00:04]} Kxh3 {[%emt 0:00:03]} 68. g6 {[%emt 0:00:05]} Kh2 {[%emt 0:01:56]} 69. g7 {[%emt 0:00:09]} h3 {[%emt 0:00:11]} 70. g8=Q {[%emt 0:00:05]} Kh1 {[%emt 0:00:02]} 71. Qa8+ {[%emt 0:00:06]} Kg1 {[%emt 0:00:33]} 72. Qa1+ {[%emt 0:00:11]} Kg2 {[%emt 0:00:13]} 73. Qb2+ Kg1 {[%emt 0:00:24]} 74. Qc1+ {[%emt 0:00:11]} Kg2 {[%emt 0:00:11]} 75. Qd2+ {[%emt 0:00:05]} Kg1 {[%emt 0:00:04]} 76. Qe1+ {[%emt 0:00:17]} Kg2 {[%emt 0:00:07]} 77. Qe2+ {[%emt 0:00:04]} Kg3 {[%emt 0:00:22]} 78. Qf1 {[%emt 0:00:12]} 1-0